bitfinex/quotes_ETHUSD_20251028
["timestamp","ask_amount","ask_price","bid_price","bid_amount"]
[1761675762050,5.80699786,4142.6,4142.1,0.01]
[1761675762509,6.13789786,4142.6,4142.1,0.01]
[1761675764333,6.99794151,4142.6,4142.1,0.01]
[1761675766120,6.99794151,4142.6,4141.8,0.002]
[1761675766121,2.539,4142.2,4141.8,0.002]
[1761675766319,9.98060826,4141.9,4141.8,0.002]
[1761675766540,10.49929624,4141.9,4141.8,0.002]
[1761675766756,10.84939624,4141.9,4141.8,0.002]
[1761675766929,2.41458408,4141.5,4141.4,1e-08]
[1761675767130,5.47699139,4141.5,4141.4,1e-08]
[1761675767317,8.48695511,4141.5,4141.4,1e-08]
[1761675767516,7.62099139,4141.5,4141.4,1e-08]
[1761675767751,5.12689139,4141.5,4141.4,1e-08]
[1761675767953,5.71569139,4141.5,4141.4,1e-08]
[1761675768853,0.51868798,4141.5,4141.4,0.44370001]
[1761675769055,2.41451563,4141.7,4141.4,0.44370001]
[1761675769226,2.4145297,4141.6,4141.4,0.44370001]
[1761675769859,4.55948359,4141.7,4141.4,0.44370001]
[1761675771338,2.41452823,4141.6,4141.4,0.44370001]
[1761675771644,4.55948733,4141.7,4141.4,0.44370001]
[1761675772557,2.145,4141.7,4141.4,0.44370001]
[1761675773125,0.51946661,4142.0,4141.4,0.44370001]
[1761675773126,0.51946661,4142.0,4141.4,1.32955158]
[1761675773320,2.144,4141.9,4141.4,1.32955158]
[1761675773557,2.144,4141.9,4141.5,0.4437]
[1761675773730,2.41425028,4142.1,4141.5,0.4437]
[1761675773937,2.41418939,4142.2,4141.5,2.85828131]
[1761675774133,4.55818939,4142.2,4141.5,3.25879379]
[1761675774442,4.55818939,4142.2,4141.6,0.4437]
[1761675774443,2.144,4142.2,4141.6,0.4437]
[1761675774622,2.41423432,4142.1,4141.6,0.4437]
[1761675774819,2.41433561,4142.0,4141.6,0.4437]
[1761675776056,4.55819784,4142.2,4141.6,0.4437]
[1761675776358,2.143,4142.2,4142.1,0.2035]
[1761675776557,2.41406622,4142.4,4142.1,0.2035]
[1761675776759,2.143,4142.3,4142.2,0.4437]
[1761675776927,2.41495314,4142.6,4142.2,0.4437]
[1761675776928,0.001,4142.6,4142.2,0.4437]
[1761675777237,2.143,4142.5,4142.2,0.4437]
[1761675777641,0.001,4142.4,4142.2,0.4437]
[1761675779561,2.4151044,4142.4,4142.2,0.4437]
[1761675779939,0.12,4142.2,4142.1,0.2035]
[1761675780146,0.12,4142.2,4142.1,0.6472]
[1761675788756,0.12,4142.2,4141.1,0.2057]
[1761675788961,0.12,4141.9,4141.3,0.002]
[1761675789269,2.141,4141.8,4141.4,0.46150001]
[1761675789789,4.55541245,4141.8,4141.4,0.46150001]
[1761675790280,4.55541245,4141.8,4141.4,1e-08]
[1761675790589,2.41452129,4141.7,4141.4,1e-08]
[1761675790900,2.41450559,4141.7,4141.4,1e-08]
[1761675791400,4.55542417,4141.8,4141.4,1e-08]
[1761675791607,2.141,4141.8,4141.5,0.4357]
[1761675792407,2.14,4141.8,4141.5,0.4357]
[1761675794282,2.14,4141.8,4141.5,0.4377]
[1761675795234,0.12,4141.7,4141.6,8.20884591]
[1761675795919,0.12,4141.7,4141.6,5.79435736]
[1761675796117,0.12,4141.7,4141.6,6.23005736]
[1761675796892,0.12,4141.7,4141.6,8.64458314]
[1761675797435,0.12,4141.7,4141.6,6.23005736]
[1761675798133,2.41452578,4141.6,4141.5,0.002]
[1761675798428,3.14621171,4141.6,4141.5,0.002]
[1761675798603,3.48521171,4141.6,4141.5,0.002]
[1761675798803,4.00521002,4141.6,4141.5,0.002]
[1761675799649,3.48521171,4141.6,4141.5,0.002]
[1761675800200,4.00524765,4141.6,4141.5,0.002]
[1761675800405,3.48521171,4141.6,4141.5,0.002]
[1761675804249,3.14621171,4141.6,4141.5,0.002]
[1761675804449,5.28721171,4141.6,4141.5,0.002]
[1761675805299,5.62621171,4141.6,4141.5,0.002]
[1761675813111,0.73168593,4141.6,4141.5,0.002]
[1761675813444,0.65036191,4142.2,4141.5,0.4377]
[1761675813445,2.141,4141.8,4141.5,0.4377]
[1761675813606,2.41519122,4142.2,4141.5,6.23205736]
[1761675813812,2.141,4142.1,4141.9,4.54410918]
[1761675814011,4.55618504,4142.2,4141.9,4.54410918]
[1761675814312,2.142,4142.2,4141.5,0.002]
[1761675814531,4.55619386,4142.2,4141.6,0.4357]
[1761675814738,2.41424361,4142.1,4141.7,4.54410918]
[1761675814947,4.55619525,4142.2,4141.7,4.54410918]
[1761675815246,4.55619525,4142.2,4141.8,0.4357]
[1761675815548,2.142,4142.2,4141.8,0.4357]
[1761675815924,4.55618365,4142.2,4141.8,0.4357]
[1761675816843,2.41423847,4142.1,4141.8,0.4357]
[1761675817427,4.55618465,4142.2,4141.8,0.4357]
[1761675818233,2.41452578,4141.6,4141.5,0.002]
[1761675818562,6.11072578,4141.6,4141.5,0.002]
[1761675818763,6.96951629,4141.6,4141.5,0.002]
[1761675819057,4.82851629,4141.6,4141.5,0.002]
[1761675819225,7.78153503,4141.6,4141.5,0.002]
[1761675822064,7.44253503,4141.6,4141.5,0.002]
[1761675822761,2.93431629,4141.6,4141.5,0.002]
[1761675822942,4.55552578,4141.6,4141.5,0.002]
[1761675823138,2.41452578,4141.6,4141.5,0.002]
[1761675823466,2.41440919,4141.8,4141.5,5.01240918]
[1761675823467,2.41443705,4141.8,4141.5,5.01240918]
[1761675823666,2.141,4141.8,4141.5,5.01240918]
[1761675823865,2.41448068,4141.7,4141.5,4.54610918]
[1761675824036,4.55542222,4141.8,4141.5,4.54610918]
[1761675824223,2.41442222,4141.8,4141.5,4.54610918]
[1761675824424,2.41442222,4141.8,4141.6,0.4663]
[1761675825761,2.41442044,4141.8,4141.6,0.4663]
[1761675826169,2.41442044,4141.8,4141.5,4.54610918]
[1761675826170,2.53452578,4141.6,4141.5,0.002]
[1761675826474,0.12,4141.6,4141.5,0.4683]
[1761675828770,2.53452578,4141.6,4141.5,0.4683]
[1761675829361,0.12,4141.6,4141.5,0.4683]
[1761675829836,2.53452578,4141.6,4141.5,0.002]
[1761675830237,2.53452578,4141.6,4141.5,0.4683]
[1761675831172,2.53452578,4141.6,4141.5,0.002]
[1761675831375,5.72041961,4141.6,4141.5,0.002]
[1761675833377,6.24036462,4141.6,4141.5,0.002]
[1761675836181,5.19547079,4141.6,4141.5,5.01240918]
[1761675836381,4.67552578,4141.6,4141.5,5.01240918]
[1761675836682,4.67552578,4141.6,4141.5,0.4683]
[1761675837346,2.53452578,4141.6,4141.5,0.4683]
[1761675837551,4.67552578,4141.6,4141.5,0.4683]
[1761675838248,4.67552578,4141.6,4141.5,0.002]
[1761675838447,4.67552578,4141.6,4141.5,0.4683]
[1761675838951,2.41452578,4141.6,4141.5,0.4683]
[1761675841887,2.141,4141.8,4141.5,0.4683]
[1761675842090,2.41440919,4141.8,4141.7,4.54410918]
[1761675842605,2.41440919,4141.8,4141.5,0.98911092]
[1761675842606,2.41452578,4141.6,4141.5,0.002]
[1761675842921,2.41452578,4141.6,4141.5,0.4683]
[1761675843487,2.41452578,4141.6,4141.5,0.002]
[1761675844019,2.41452578,4141.6,4141.5,0.4683]
[1761675844207,2.53446808,4141.7,4141.5,0.4683]
[1761675844751,2.41452578,4141.6,4141.5,0.4683]
[1761675844955,2.53448043,4141.7,4141.5,0.4683]
[1761675845460,2.41452578,4141.6,4141.5,0.4683]
[1761675846165,2.41452578,4141.6,4141.5,0.002]
[1761675846326,5.5994236,4141.6,4141.5,0.002]
[1761675847650,6.11949282,4141.6,4141.5,0.002]
[1761675848647,12.218802,4141.6,4141.5,0.002]
[1761675848854,12.218802,4141.6,4141.3,1e-08]
[1761675848855,2.41464239,4141.4,4141.3,1e-08]
[1761675849040,4.48991161,4141.4,4141.3,1e-08]
[1761675849220,6.37575825,4141.4,4141.3,1e-08]
[1761675850068,6.37575825,4141.4,4141.0,0.002]
[1761675850069,2.41481731,4141.1,4141.0,0.002]
[1761675850275,6.63008653,4141.1,4141.0,0.002]
[1761675850439,7.61573496,4141.1,4141.0,0.002]
[1761675850639,9.53779583,4141.1,4141.0,0.002]
[1761675852043,8.8880474,4141.1,4141.0,0.002]
[1761675852472,9.53734013,4141.1,4141.0,0.002]
[1761675852679,8.8880474,4141.1,4141.0,0.002]
[1761675852885,6.95910145,4140.8,4140.7,0.002]
[1761675853183,3.97025059,4140.7,4140.6,1e-08]
[1761675853388,4.96091981,4140.7,4140.6,1e-08]
[1761675853683,5.61026804,4140.7,4140.6,1e-08]
[1761675853883,4.96091981,4140.7,4140.6,1e-08]
[1761675854083,7.96750654,4140.7,4140.6,1e-08]
[1761675854282,8.43810654,4140.7,4140.6,1e-08]
[1761675855785,5.82650654,4140.7,4140.6,1e-08]
[1761675856084,8.43810654,4140.7,4140.6,1e-08]
[1761675863697,5.30643732,4140.7,4140.6,1e-08]
[1761675864036,7.44743732,4140.7,4140.6,1e-08]
[1761675864400,7.96548501,4140.7,4140.6,1e-08]
[1761675864600,8.43608501,4140.7,4140.6,1e-08]
[1761675865601,4.55605059,4140.7,4140.6,1e-08]
[1761675868939,4.55705059,4140.7,4140.6,1e-08]
[1761675873308,5.01635059,4140.7,4140.6,1e-08]
[1761675873503,7.09055893,4140.7,4140.6,1e-08]
[1761675874137,6.63125893,4140.7,4140.6,1e-08]
[1761675874316,7.61013997,4140.7,4140.6,1e-08]
[1761675876341,8.25779915,4140.7,4140.6,1e-08]
[1761675877046,8.71709915,4140.7,4140.6,1e-08]
[1761675877416,8.06943997,4140.7,4140.6,1e-08]
[1761675878363,8.93614129,4140.7,4140.6,1e-08]
[1761675878648,8.06943997,4140.7,4140.6,1e-08]
[1761675880456,8.93688079,4140.7,4140.6,1e-08]
[1761675880842,8.93687425,4140.7,4140.6,1e-08]
[1761675881020,8.93687425,4140.7,4140.3,1e-08]
[1761675881021,8.85432898,4140.7,4140.3,1e-08]
[1761675881347,8.85432898,4140.7,4139.7,0.002]
[1761675881348,2.41557563,4139.8,4139.7,0.002]
[1761675881551,6.63078397,4139.8,4139.7,0.002]
[1761675881749,7.73818052,4139.8,4139.7,0.002]
[1761675881928,12.88802357,4139.8,4139.7,0.002]
[1761675882129,1.5552,4139.7,4138.1,0.01]
[1761675882344,2.41650959,4138.2,4138.1,0.01]
[1761675883851,2.41650959,4138.2,4138.1,0.2037]
[1761675884057,2.41650959,4138.2,4138.1,0.6696]
[1761675884550,0.64966703,4139.0,4138.1,0.6696]
[1761675884750,2.41643601,4138.4,4138.1,0.6696]
[1761675884961,2.41650959,4138.2,4138.1,0.6696]
[1761675885271,2.142,4138.3,4138.2,0.4659]
[1761675886166,2.41634349,4138.5,4138.2,0.4659]
[1761675886367,2.41640496,4138.4,4138.2,0.4659]
[1761675886578,2.41640496,4138.4,4138.1,0.2057]
[1761675886579,2.41643138,4138.4,4138.1,0.2057]
[1761675886740,2.41643138,4138.4,4138.1,0.012]
[1761675886741,0.69757484,4138.4,4138.1,0.012]
[1761675886944,2.41645119,4138.3,4138.1,0.012]
[1761675887239,4.55950959,4138.2,4138.1,0.012]
[1761675887737,2.143,4138.2,4138.1,0.2057]
[1761675887942,2.143,4138.2,4138.1,0.6716]
[1761675888178,4.55950959,4138.2,4138.1,0.6716]
[1761675888383,4.55950959,4138.2,4138.1,0.012]
[1761675889756,2.143,4138.2,4138.1,0.012]
[1761675889959,2.143,4138.2,4138.1,0.6716]
[1761675890383,4.55950959,4138.2,4138.1,0.6716]
[1761675890682,4.55950959,4138.2,4138.1,0.2057]
[1761675892587,2.41639331,4138.4,4138.1,0.6716]
[1761675892588,0.1208,4138.4,4138.1,0.6716]
[1761675893076,0.1208,4138.4,4138.2,0.77472286]
[1761675893275,0.1208,4138.4,4138.3,0.4659]
[1761675894051,0.1208,4138.4,4138.3,2.88235119]
[1761675894257,0.1208,4138.4,4138.3,0.4659]
[1761675894955,0.1208,4138.4,4138.3,2.88235119]
[1761675895171,0.1208,4138.4,4138.3,3.43281872]
[1761675895648,0.1208,4138.4,4138.3,0.4659]
[1761675899008,0.1208,4138.4,4138.3,2.88235119]
[1761675900212,0.1208,4138.4,4138.3,0.4659]
[1761675900519,0.31,4139.3,4138.5,2.41629535]
[1761675900701,0.1208,4138.7,4138.6,0.4659]
[1761675900877,0.1208,4138.7,4138.6,3.41204068]
[1761675901500,0.2219,4139.9,4138.7,0.405504]
[1761675901718,0.1208,4139.0,4138.9,2.82159694]
[1761675901921,0.12,4139.2,4139.0,0.4659]
[1761675902121,0.12,4139.2,4139.0,2.88193978]
[1761675902321,0.12,4139.2,4139.1,2.89127813]
[1761675902613,0.12,4139.2,4139.1,3.35717813]
[1761675903179,0.12,4139.2,4139.1,3.76268213]
[1761675903376,0.01,4140.4,4139.1,3.76268213]
[1761675903377,0.12,4139.5,4139.2,0.405504]
[1761675903613,0.12,4139.5,4139.2,0.871404]
[1761675903816,0.12,4139.5,4139.3,6.17630678]
[1761675904017,0.12,4139.5,4139.3,9.05802745]
[1761675904187,0.12,4139.5,4139.4,0.4659]
[1761675906092,0.12,4139.5,4139.3,7.94303857]
[1761675906603,0.12,4139.5,4139.3,2.143]
[1761675907005,0.12,4139.5,4139.3,2.6089]
[1761675907399,0.12,4139.5,4139.3,5.02476585]
[1761675907604,0.12,4139.5,4139.4,2.88170905]
[1761675907921,0.12,4139.5,4139.4,0.4659]
[1761675910095,0.12,4139.5,4139.4,2.88170905]
[1761675910293,0.001,4139.6,4139.5,2.82125469]
[1761675910528,0.001,4139.6,4139.5,9.06519326]
[1761675910697,0.001,4139.6,4139.5,10.47216351]
[1761675913521,0.001,4139.6,4139.5,6.20554257]
[1761675913741,0.001,4139.6,4139.5,9.06519326]
[1761675915938,0.001,4139.6,4139.5,9.18519326]
[1761675916302,0.001,4139.6,4139.5,10.86039326]
[1761675916526,0.001,4139.6,4139.5,10.41649326]
[1761675916836,0.001,4139.6,4139.5,13.00239326]
[1761675917036,0.001,4139.6,4139.5,14.57678335]
[1761675917205,0.001,4139.6,4139.5,6.63474478]
[1761675917411,0.001,4139.6,4139.5,13.00239326]
[1761675921414,0.001,4139.6,4139.5,7.20235469]
[1761675921610,0.001,4139.6,4139.5,2.200704]
[1761675921815,0.001,4139.6,4139.3,2.142]
[1761675922042,0.4489,4139.6,4139.1,0.002]
[1761675922244,2.86461121,4139.6,4139.1,0.002]
[1761675922444,2.94377972,4139.5,4139.1,0.002]
[1761675922636,3.39167972,4139.5,4139.1,0.002]
[1761675922836,0.4479,4139.4,4139.1,0.002]
[1761675923035,2.8637097,4139.4,4139.1,0.002]
[1761675923663,0.4479,4139.3,4139.1,0.002]
[1761675924250,2.41592578,4139.2,4139.1,0.002]
[1761675924418,2.94389279,4139.2,4139.1,0.002]
[1761675924617,3.39179279,4139.2,4139.1,0.002]
[1761675925444,4.94699279,4139.2,4139.1,0.002]
[1761675925756,11.26521821,4139.2,4139.1,0.002]
[1761675926050,11.91202401,4139.2,4139.1,0.002]
[1761675926647,11.26521821,4139.2,4139.1,0.002]
[1761675927253,12.12781355,4139.2,4139.1,0.002]
[1761675927670,11.26521821,4139.2,4139.1,0.002]
[1761675927969,5.46517964,4139.2,4139.1,0.002]
[1761675928145,5.87068364,4139.2,4139.1,0.002]
[1761675928552,2.64781765,4138.7,4138.6,1e-08]
[1761675928762,7.50000686,4138.7,4138.6,1e-08]
[1761675928964,8.34218962,4138.7,4138.6,1e-08]
[1761675929163,8.43890457,4138.7,4138.6,1e-08]
[1761675929532,7.79231497,4138.7,4138.6,1e-08]
[1761675930066,8.43793607,4138.7,4138.6,1e-08]
[1761675930656,8.19781897,4138.7,4138.6,1e-08]
[1761675931035,8.84302259,4138.7,4138.6,1e-08]
[1761675931771,8.19781897,4138.7,4138.6,1e-08]
[1761675932142,8.84260876,4138.7,4138.6,1e-08]
[1761675932749,8.19781897,4138.7,4138.6,1e-08]
[1761675933769,8.84213145,4138.7,4138.6,1e-08]
[1761675933957,8.19781897,4138.7,4138.6,1e-08]
[1761675934155,8.84213157,4138.7,4138.6,1e-08]
[1761675936271,8.19781897,4138.7,4138.6,1e-08]
[1761675936676,8.84213157,4138.7,4138.6,1e-08]
[1761675937074,2.41674319,4137.8,4137.1,0.01]
[1761675937378,6.75480378,4137.8,4137.1,0.01]
[1761675937677,7.20360378,4137.8,4137.1,0.01]
[1761675937879,7.81479149,4137.8,4137.1,0.01]
[1761675938296,2.409504,4137.7,4137.1,0.01]
[1761675938472,0.405504,4137.5,4137.1,0.01]
[1761675938784,2.41686001,4137.6,4137.1,0.01]
[1761675938785,2.41709368,4137.2,4137.1,1e-08]
[1761675939187,4.42109368,4137.2,4137.1,1e-08]
[1761675939499,4.51784208,4137.2,4137.1,1e-08]
[1761675940184,4.06904208,4137.2,4137.1,1e-08]
[1761675940385,4.51784208,4137.2,4137.1,1e-08]
[1761675940574,5.48318718,4137.2,4137.1,1e-08]
[1761675941069,5.48318718,4137.2,4137.1,0.00200001]
[1761675942778,7.62718718,4137.2,4137.1,0.00200001]
[1761675943791,7.17838718,4137.2,4137.1,0.00200001]
[1761675944191,3.2060935,4137.2,4137.1,0.00200001]
[1761675944389,2.144,4137.2,4137.1,0.64140001]
[1761675945570,4.56109368,4137.2,4137.1,0.64140001]
[1761675946090,4.56109368,4137.2,4137.1,0.20550001]
[1761675946652,2.144,4137.2,4137.1,0.20550001]
[1761675946995,4.56109368,4137.2,4137.1,0.20550001]
[1761675947359,4.56109368,4137.2,4137.1,0.64140001]
[1761675948085,2.144,4137.2,4137.1,0.00200001]
[1761675948690,4.56109368,4137.2,4137.1,0.00200001]
[1761675950701,2.144,4137.2,4137.1,0.00200001]
[1761675951608,4.56109368,4137.2,4137.1,0.00200001]
[1761675952701,2.144,4137.2,4137.1,0.00200001]
[1761675953503,2.144,4137.2,4137.1,0.64140001]
[1761675953873,2.144,4137.2,4137.1,5.19745776]
[1761675954073,2.144,4137.2,4137.1,5.95893546]
[1761675954707,2.143,4137.5,4137.1,8.37608757]
[1761675954912,2.143,4137.5,4137.4,4.55605775]
[1761675955097,2.4164695,4138.3,4137.4,4.99195775]
[1761675955292,2.41657547,4138.1,4137.7,4.55605775]
[1761675955604,2.143,4138.0,4137.7,4.55605775]
[1761675955788,2.143,4138.0,4137.8,0.4359]
[1761675958138,0.001,4138.7,4137.8,0.4359]
[1761675958344,2.41639459,4138.4,4137.8,0.4359]
[1761675958634,2.41651523,4138.2,4137.8,0.4359]
[1761675959234,2.41646902,4138.3,4138.1,0.1937]
[1761675959444,0.1208,4138.4,4138.2,4.55605775]
[1761675959589,0.1208,4138.4,4138.3,6.97250894]
[1761675959790,0.1208,4138.4,4138.3,8.96360894]
[1761675960021,0.001,4138.5,4138.4,2.4163928]
[1761675960188,0.001,4138.5,4138.4,2.8522928]
[1761675962315,0.001,4138.5,4138.4,4.9952928]
[1761675962724,0.001,4138.5,4138.0,0.1208]
[1761675962924,0.001,4138.5,4136.6,0.002]
[1761675962925,2.87026108,4138.5,4137.5,0.4359]
[1761675963224,3.17688854,4138.5,4137.6,2.41684926]
[1761675963595,3.17688854,4138.5,4137.6,2.85274926]
[1761675963795,2.41649959,4138.3,4137.6,0.4359]
[1761675963992,2.41649959,4138.3,4137.6,2.85274174]
[1761675964196,2.144,4138.4,4137.6,2.85274174]
[1761675964197,2.144,4138.4,4137.6,0.4359]
[1761675964397,2.144,4138.4,4138.3,0.1937]
[1761675965002,0.001,4138.5,4138.3,0.6296]
[1761675965502,0.001,4138.5,4137.7,0.4359]
[1761675965708,0.001,4138.5,4137.6,0.28528105]
[1761675965709,0.4159,4138.4,4137.2,0.4359]
[1761675966002,0.4159,4138.4,4137.1,0.20550001]
[1761675966003,2.41656799,4138.1,4137.1,0.00200001]
[1761675966201,3.6992,4138.3,4137.1,0.00200001]
[1761675966202,2.41703796,4137.3,4137.1,0.00200001]
[1761675966434,2.145,4137.5,4137.1,0.00200001]
[1761675966934,2.41709368,4137.2,4137.1,0.00200001]
[1761675967434,2.41708382,4137.3,4137.1,0.00200001]
[1761675967636,2.145,4137.5,4137.1,0.00200001]
[1761675967940,2.3595,4137.5,4137.1,0.00200001]
[1761675968116,4.77644128,4137.5,4137.1,0.00200001]
[1761675968310,2.3595,4137.5,4137.1,0.00200001]
[1761675968511,2.7565768,4138.0,4137.2,0.6427]
[1761675968716,2.41675779,4137.8,4137.2,0.6427]
[1761675969427,2.145,4138.0,4137.2,0.6427]
[1761675969734,2.4167554,4137.8,4137.2,0.6427]
[1761675969935,2.41673003,4137.9,4137.2,0.6427]
[1761675970124,2.41676727,4137.8,4137.2,0.6427]
[1761675970326,2.41669654,4137.9,4137.2,0.6427]
[1761675970507,2.41682386,4137.7,4137.2,0.6427]
[1761675970834,2.41676854,4137.8,4137.2,0.6427]
[1761675971034,2.41681127,4137.7,4137.2,0.2035]
[1761675971339,2.41675951,4137.8,4137.2,0.2035]
[1761675972871,2.41680223,4137.7,4137.2,0.2035]
[1761675973067,3.10000371,4137.9,4137.2,0.2035]
[1761675973369,2.41678253,4137.8,4137.2,0.2035]
[1761675973575,0.45616965,4137.9,4137.2,0.2035]
[1761675973781,2.145,4138.0,4137.3,0.4605]
[1761675973962,0.1208,4137.4,4137.3,0.4605]
[1761675974368,0.1208,4137.4,4137.3,2.87753526]
[1761675976478,0.1208,4137.4,4137.3,3.42755356]
[1761675979158,0.1208,4137.4,4137.3,2.96705356]
[1761675979575,0.1208,4137.4,4137.3,3.42755356]
[1761675980262,0.1208,4137.4,4137.3,2.96705356]
[1761675980797,0.1208,4137.4,4137.3,3.42755356]
[1761675982774,0.001,4138.5,4137.9,2.41666747]
[1761675982997,0.001,4138.5,4137.6,2.143]
[1761675983196,0.1208,4138.0,4137.7,2.05724487]
[1761675983402,0.1208,4138.0,4137.9,2.41668479]
[1761675983768,0.1208,4138.0,4137.9,2.87718479]
[1761675986080,0.001,4138.5,4138.4,2.4163928]
[1761675986081,0.1218,4138.5,4138.4,2.4163928]
[1761675986281,0.1218,4138.5,4138.4,2.8509087]
[1761675986603,0.1218,4138.5,4138.4,3.3114087]
[1761675987302,0.1218,4138.5,4138.2,2.143]
[1761675987466,0.1218,4138.5,4138.2,4.55949679]
[1761675987668,0.1218,4138.5,4138.3,2.87692957]
[1761675988104,0.1218,4138.5,4138.2,4.55949632]
[1761675988606,0.1218,4138.5,4138.0,4.43231702]
[1761675988607,0.001,4138.5,4137.6,0.4605]
[1761675988905,0.001,4138.5,4137.9,2.143]
[1761675988906,0.1208,4138.2,4137.9,2.143]
[1761675989419,0.1208,4138.2,4138.0,2.41662266]
[1761675990466,0.1208,4138.2,4137.9,2.143]
[1761675990812,0.1208,4138.2,4137.9,4.55968159]
[1761675991315,0.1208,4138.2,4137.2,0.2035]
[1761675991316,0.3408,4138.2,4137.1,0.00200001]
[1761675991520,2.41656799,4138.1,4137.1,2.14500001]
[1761675991679,2.41662638,4138.0,4137.1,2.14500001]
[1761675992034,2.41690882,4137.6,4137.1,0.00200001]
[1761675992333,2.41702079,4137.4,4137.1,0.00200001]
[1761675992498,2.65873899,4137.3,4137.1,0.00200001]
[1761675992683,2.41703691,4137.3,4137.1,0.00200001]
[1761675992887,2.75783691,4137.3,4137.1,0.00200001]
[1761675993237,2.75789368,4137.2,4137.1,0.00200001]
[1761675993415,4.90189368,4137.2,4137.1,0.00200001]
[1761675996018,0.9851126,4138.0,4137.1,0.00200001]
[1761675996313,2.144,4137.9,4137.2,2.41708069]
[1761675996512,2.144,4137.9,4137.1,0.00200001]
[1761675996694,0.001,4137.4,4137.1,0.00200001]
[1761675997496,0.001,4137.4,4137.1,2.41911301]
[1761675998002,0.001,4137.4,4137.2,2.41709318]
[1761675998201,0.001,4137.4,4137.1,0.20550001]
[1761675998202,0.001,4137.4,4137.1,2.4191411]
[1761675998715,0.001,4137.4,4137.1,0.00200001]
[1761675999323,0.001,4137.4,4137.2,0.2035]
[1761675999817,0.001,4137.4,4137.2,2.62056015]
[1761675999996,0.001,4137.4,4137.3,2.41703526]
[1761676000408,0.001,4137.4,4137.3,3.41490268]
[1761676000603,0.001,4137.4,4137.3,3.43907303]
[1761676000813,0.001,4137.4,4137.3,3.41490268]
[1761676001325,0.1218,4137.4,4137.3,3.41490268]
[1761676001520,0.001,4137.4,4137.3,4.97010268]
[1761676002384,0.001,4137.4,4137.3,5.37560668]
[1761676004491,0.001,4137.4,4137.3,4.52110268]
[1761676004725,0.001,4137.4,4137.3,6.11723526]
[1761676008405,0.001,4137.4,4137.3,6.56623526]
[1761676010514,0.001,4137.4,4137.3,6.11723526]
[1761676011113,0.001,4137.4,4137.3,6.56623526]
[1761676013936,0.001,4137.4,4137.3,4.42123526]
[1761676014140,0.001,4137.4,4137.3,3.97223526]
[1761676014919,0.001,4137.4,4137.3,6.11523526]
[1761676016443,0.001,4137.4,4137.1,0.00200001]
[1761676016623,0.1208,4137.2,4137.1,2.41913471]
[1761676016825,0.1208,4137.2,4137.1,0.00200001]
[1761676017013,0.4616,4137.2,4137.1,0.00200001]
[1761676017207,0.74956734,4137.2,4137.1,0.00200001]
[1761676017813,0.4616,4137.2,4137.1,0.00200001]
[1761676018134,0.1208,4137.2,4137.1,0.00200001]
[1761676021149,0.1208,4137.2,4137.1,2.41915212]
[1761676022372,0.1208,4137.2,4137.1,3.07165212]
[1761676022533,0.1208,4137.2,4137.1,2.41915212]
[1761676022934,0.1208,4137.2,4137.1,3.07165212]
[1761676023552,0.1208,4137.2,4137.1,2.62265212]
[1761676024436,0.1208,4137.2,4137.1,2.41915212]
[1761676025337,0.1208,4137.2,4137.1,2.62265212]
[1761676025548,0.1208,4137.2,4137.1,3.78994293]
[1761676025943,0.1208,4137.2,4137.1,3.34094293]
[1761676026150,0.1208,4137.2,4137.1,3.78994293]
[1761676027636,0.1208,4137.2,4137.1,5.75064693]
[1761676027837,0.001,4137.4,4137.3,2.41703526]
[1761676028032,0.001,4137.4,4137.3,5.40711308]
[1761676028227,0.001,4137.4,4137.3,5.86331308]
[1761676030091,0.001,4137.4,4137.3,7.82401708]
[1761676030236,0.001,4137.4,4137.3,7.94481708]
[1761676030585,0.001,4137.4,4137.3,9.23531225]
[1761676030732,0.001,4137.9,4137.8,16.75629263]
[1761676030932,0.001,4137.9,4137.8,22.49260382]
[1761676031242,0.001,4137.9,4137.8,23.81868234]
[1761676033175,0.001,4137.9,4137.8,22.95180382]
[1761676037986,0.001,4137.9,4137.8,23.07145607]
[1761676040685,0.001,4137.9,4137.8,22.95180382]
[1761676040889,0.001,4137.9,4137.8,26.79180382]
[1761676041570,0.001,4137.9,4137.8,26.91246022]
[1761676043786,0.001,4137.9,4137.8,18.78029047]
[1761676045796,0.352,4137.9,4137.3,0.84707782]
[1761676045951,0.352,4137.9,4137.3,2.142]
[1761676046150,2.76869969,4137.9,4137.3,2.142]
[1761676046350,2.41687235,4137.6,4137.3,2.144]
[1761676046765,0.351,4137.5,4137.3,2.144]
[1761676047716,2.41697684,4137.4,4137.1,2.14500001]
[1761676048001,0.351,4137.3,4137.1,2.14500001]
[1761676048808,0.351,4137.3,4137.1,0.00200001]
[1761676049001,0.351,4137.3,4137.1,2.14500001]
[1761676051718,0.001,4137.9,4137.1,2.14500001]
[1761676052010,0.001,4137.9,4137.4,2.41696336]
[1761676052214,0.352,4137.9,4137.5,2.143]
[1761676052381,0.352,4137.9,4137.5,4.55989538]
[1761676053376,0.352,4137.9,4137.6,2.142]
[1761676055223,3.04556417,4137.9,4137.7,2.142]
[1761676055410,2.76870432,4137.9,4137.7,2.142]
[1761676055592,2.76774319,4137.8,4137.7,2.142]
[1761676056323,0.351,4137.8,4137.7,2.142]
[1761676056730,2.76774319,4137.8,4137.7,2.142]
[1761676057530,0.351,4137.8,4137.7,2.142]
[1761676057908,2.76774319,4137.8,4137.7,2.142]
[1761676058734,0.1208,4137.7,4137.4,2.142]
[1761676058892,0.4718,4137.7,4137.4,2.142]
[1761676059099,0.351,4137.6,4137.4,2.142]
[1761676059499,0.1208,4137.7,4137.4,3.6972]
[1761676059701,0.001,4137.9,4137.5,0.63177123]
[1761676059901,0.351,4137.8,4137.4,2.142]
[1761676060230,0.351,4137.8,4137.4,4.55897084]
[1761676060819,0.351,4137.8,4137.5,2.41691824]